bitfinex/quotes_SOLUSD_20251130
["timestamp","ask_amount","ask_price","bid_price","bid_amount"]
[1764534788618,3.2,137.2,137.17,3.58264718]
[1764534788824,0.68,137.21,137.19,3.48264718]
[1764534789027,3.88,137.22,137.2,3.48264718]
[1764534789740,7.96861281,137.21,137.19,3.48264718]
[1764534790342,7.96861281,137.21,137.17,7.60002241]
[1764534790533,0.68,137.2,137.18,3.48264718]
[1764534791343,0.68,137.21,137.19,3.48264718]
[1764534791545,0.68,137.21,137.2,3.48264718]
[1764534791843,0.68,137.21,137.19,3.48264718]
[1764534798457,7.96818199,137.21,137.17,65.08264718]
[1764534798752,29.6710755,137.21,137.17,61.6]
[1764534798939,4.16264718,137.2,137.17,61.6]
[1764534799134,3.2,137.19,137.17,61.6]
[1764534799341,3.88,137.19,137.17,61.6]
[1764534799541,0.68,137.18,137.17,61.6]
[1764534799742,0.68,137.18,137.17,0.1]
[1764534800857,10.48952093,137.19,137.17,0.1]
[1764534801154,0.68,137.18,137.17,0.1]
[1764534801354,3.2,137.2,137.17,3.58264718]
[1764534801529,0.68,137.19,137.17,3.58264718]
[1764534802457,3.2,137.2,137.18,3.48264718]
[1764534802649,3.88,137.2,137.18,3.48264718]
[1764534803553,3.91,137.2,137.18,3.48264718]
[1764534807461,0.71,137.2,137.18,3.48264718]
[1764534808477,0.71,137.2,137.17,7.3902238]
[1764534808683,0.71,137.2,137.18,3.48264718]
[1764534810754,7.99907263,137.2,137.17,0.1]
[1764534810962,7.99907263,137.2,137.17,3.58264718]
[1764534811162,0.71,137.19,137.17,0.1]
[1764534813473,7.99953138,137.19,137.17,0.1]
[1764534813949,0.71,137.18,137.17,0.1]
[1764534815071,0.71,137.18,137.17,3.58264718]
[1764534816049,0.71,137.18,137.17,0.1]
[1764534816380,0.71,137.18,137.17,3.58264718]
[1764534821072,0.71,137.2,137.17,3.58264718]
[1764534821273,0.71,137.21,137.19,3.48264718]
[1764534822179,0.71,137.21,137.2,3.48264718]
[1764534823479,0.71,137.21,137.19,3.48264718]
[1764534824382,0.71,137.21,137.2,3.48264718]
[1764534828078,0.71,137.21,137.18,10.48957872]
[1764534828272,0.71,137.21,137.2,3.48264718]
[1764534830275,0.71,137.21,137.18,10.48957872]
[1764534830473,0.71,137.21,137.2,3.48264718]
[1764534831576,0.71,137.23,137.2,3.48264718]
[1764534831752,17.018864,137.24,137.22,3.48264718]
[1764534831958,17.018864,137.24,137.23,3.48264718]
[1764534832878,17.018864,137.24,137.2,72.19848631]
[1764534833081,23.59539698,137.24,137.23,3.48264718]
[1764534833588,24.30539698,137.24,137.23,3.48264718]
[1764534833772,24.30539698,137.24,137.2,72.19848631]
[1764534833973,23.59539698,137.24,137.23,3.48264718]
[1764534835666,24.29539698,137.24,137.23,3.48264718]
[1764534836464,24.29539698,137.24,137.23,2.22853496]
[1764534837474,24.29539698,137.24,137.2,61.5]
[1764534837675,2.92853496,137.23,137.19,2.22853496]
[1764534838066,0.7,137.22,137.19,2.22853496]
[1764534838478,7.28809853,137.21,137.19,2.22853496]
[1764534838982,0.7,137.2,137.19,2.22853496]
[1764534839596,7.98878245,137.2,137.19,2.22853496]
[1764534841679,7.98878245,137.2,137.17,0.1]
[1764534841883,0.7,137.19,137.18,2.22853496]
[1764534842576,0.7,137.19,137.17,2.32853496]
[1764534843101,0.7,137.19,137.18,2.22853496]
[1764534844489,0.7,137.19,137.17,0.1]
[1764534844702,0.7,137.19,137.18,2.22853496]
[1764534848600,0.7,137.19,137.17,2.32853496]
[1764534848803,0.7,137.19,137.18,2.22853496]
[1764534851006,0.7,137.19,137.17,0.1]
[1764534851209,21.73739896,137.18,137.13,3.4243433]
[1764534851376,19.508864,137.18,137.16,2.22853496]
[1764534851579,0.7,137.17,137.13,6.9343433]
[1764534851791,0.7,137.17,137.13,3.4243433]
[1764534852074,7.9902238,137.17,137.13,3.4243433]
[1764534852503,0.7,137.16,137.13,3.4243433]
[1764534852696,0.7,137.16,137.14,2.22853496]
[1764534854404,7.99110665,137.16,137.13,3.4243433]
[1764534854805,0.7,137.15,137.13,5.65287826]
[1764534855004,0.7,137.15,137.14,2.22853496]
[1764534856112,7.99128691,137.15,137.14,2.22853496]
[1764534857313,7.99128691,137.15,137.13,3.4243433]
[1764534857500,0.7,137.14,137.13,3.4243433]
[1764534858415,7.99181857,137.14,137.13,3.4243433]
[1764534862715,7.99181857,137.14,137.13,5.65287826]
[1764534862716,0.7,137.14,137.13,5.65287826]
[1764534863216,7.29143341,137.15,137.13,3.4243433]
[1764534863413,7.99143341,137.15,137.13,5.65287826]
[1764534863606,0.7,137.15,137.14,2.22853496]
[1764534864619,0.7,137.15,137.13,5.65287826]
[1764534864819,0.7,137.15,137.13,3.4243433]
[1764534865000,7.99157612,137.15,137.13,3.4243433]
[1764534865548,0.72,137.14,137.13,3.4243433]
[1764534867322,8.01181857,137.14,137.13,3.4243433]
[1764534874622,7.29181857,137.14,137.13,3.4243433]
[1764534874797,7.98181857,137.14,137.13,5.65287826]
[1764534875007,0.69,137.14,137.13,3.4243433]
[1764534880026,7.98181857,137.14,137.13,3.4243433]
[1764534880729,11.18181857,137.14,137.13,3.4243433]
[1764534893223,14.60616187,137.14,137.13,3.4243433]
[1764534895753,17.11901997,137.14,137.13,3.4243433]
[1764534896421,14.60616187,137.14,137.12,0.1]
[1764534896755,0.69,137.13,137.12,0.1]
[1764534897128,3.61130728,137.13,137.12,0.1]
[1764534897831,13.13219256,137.13,137.12,0.1]
[1764534898336,10.9036576,137.13,137.12,0.1]
[1764534898528,14.39292017,137.13,137.12,0.1]
[1764534900443,30.84394574,137.13,137.12,0.1]
[1764534901322,30.70178417,137.13,137.12,0.1]
[1764534902229,30.70178417,137.13,137.12,1e-08]
[1764534902644,30.84394574,137.13,137.12,1e-08]
[1764534903647,27.35468317,137.13,137.12,1e-08]
[1764534903852,30.84394574,137.13,137.12,1e-08]
[1764534904754,27.2125216,137.13,137.12,1e-08]
[1764534904944,30.70178417,137.13,137.12,1e-08]
[1764534910271,10.2136576,137.13,137.12,1e-08]
[1764534910441,13.4336576,137.13,137.12,1e-08]
[1764534911465,14.1236576,137.13,137.12,1e-08]
[1764534913678,17.61292017,137.13,137.12,1e-08]
[1764534914369,14.1236576,137.13,137.12,1e-08]
[1764534914544,17.61292017,137.13,137.12,1e-08]
[1764534914745,6.14130728,137.13,137.12,1e-08]
[1764534914953,3.22,137.13,137.12,3.79926258]
[1764534918089,19.528864,137.16,137.12,0.31000001]
[1764534918372,27.51076579,137.16,137.13,3.79926257]
[1764534919166,7.29128691,137.15,137.13,3.79926257]
[1764534922885,7.29128691,137.15,137.14,3.79926257]
[1764534923247,7.29128691,137.15,137.14,3.48926257]
[1764534924952,7.29128691,137.15,137.13,0.31]
[1764534925288,7.29128691,137.15,137.14,3.48926257]
[1764534930169,7.96128691,137.15,137.12,1e-08]
[1764534930381,3.87,137.14,137.12,1e-08]
[1764534930673,0.67,137.13,137.12,1e-08]
[1764534932184,7.96235032,137.13,137.12,1e-08]
[1764534933678,11.45161289,137.13,137.12,1e-08]
[1764534933976,17.08229524,137.13,137.12,1e-08]
[1764534935465,20.57155781,137.13,137.12,1e-08]
[1764534935978,36.88042181,137.13,137.12,1e-08]
[1764534960399,35.62445287,137.13,137.12,1e-08]
[1764534964303,33.39115924,137.13,137.12,1e-08]
[1764534964485,35.62445287,137.13,137.12,1e-08]
[1764534966275,33.39115924,137.13,137.12,1e-08]
[1764534969103,32.72115924,137.13,137.12,0.31000001]
[1764534969309,16.308864,137.13,137.12,2.54329364]
[1764534970006,7.29218436,137.14,137.12,0.31000001]
[1764534970208,23.60104836,137.14,137.13,0.31]
[1764534972008,10.21239812,137.15,137.13,2.54329363]
[1764534972208,7.29151748,137.15,137.13,2.54329363]
[1764534972411,7.29151748,137.15,137.14,0.31]
[1764534972605,7.29151748,137.15,137.13,2.54329363]
[1764534973196,7.29151748,137.15,137.14,0.31]
[1764534973810,10.49088926,137.16,137.14,0.31]
[1764534974693,10.49088926,137.16,137.14,2.54329363]
[1764534974891,3.2,137.16,137.14,2.54329363]
[1764534975218,19.29963475,137.19,137.15,2.54329363]
[1764534975419,19.29963475,137.19,137.16,2.54329363]
[1764534977413,10.48968983,137.19,137.17,0.31]
[1764534978315,10.48968983,137.19,137.17,2.54329363]
[1764534978500,10.48968983,137.19,137.17,0.31]
[1764534978700,19.29963475,137.19,137.17,0.31]
[1764534979109,10.48968983,137.19,137.17,0.31]
[1764534981524,10.48968983,137.19,137.16,2.23329363]
[1764534981525,10.48968983,137.19,137.16,2.54329363]
[1764534982929,10.48968983,137.19,137.18,2.23329363]
[1764534984731,10.48968983,137.19,137.17,2.54329363]
[1764534991032,3.2,137.19,137.17,2.54329363]
[1764534991447,3.2,137.19,137.17,0.31]
[1764534994748,0.69,137.18,137.15,2.23329363]
[1764534994928,0.69,137.18,137.14,2.23329363]
[1764534995249,3.2,137.17,137.14,2.23329363]
[1764534995445,3.2,137.17,137.14,2.54329363]
[1764534995653,3.89,137.17,137.14,2.54329363]
[1764534996142,11.18040247,137.17,137.14,2.54329363]
[1764534997056,11.18040247,137.17,137.14,0.31]
[1764534997358,11.18040247,137.17,137.14,2.54329363]
[1764534998743,11.18040247,137.17,137.15,2.23329363]
[1764534999055,0.69,137.16,137.13,7.60203633]
[1764534999241,0.69,137.16,137.14,2.23329363]
[1764534999642,11.18040247,137.17,137.14,2.23329363]
[1764535001356,3.2,137.2,137.16,2.23329363]
[1764535001548,12.69994493,137.2,137.17,2.23329363]
[1764535002256,19.29871054,137.2,137.17,2.23329363]
[1764535002452,0.69,137.19,137.17,2.23329363]
[1764535006856,11.17876561,137.2,137.17,2.23329363]
[1764535008637,0.69,137.19,137.16,7.60036991]
[1764535009962,10.48876561,137.2,137.16,7.60036991]
[1764535010139,11.17876561,137.2,137.16,7.60036991]
[1764535010347,11.17876561,137.2,137.17,0.31]
[1764535010872,11.17876561,137.2,137.16,7.29036991]
[1764535011168,11.17876561,137.2,137.16,7.60036991]
[1764535011469,10.48876561,137.2,137.16,7.60036991]
[1764535011646,0.69,137.19,137.16,7.60036991]
[1764535012571,0.69,137.19,137.17,2.23329363]
[1764535013466,7.97922454,137.19,137.17,2.23329363]
[1764535020382,7.97922454,137.19,137.17,3.48449547]
[1764535021265,0.66,137.18,137.17,3.48449547]
[1764535021476,0.66,137.18,137.16,7.29036991]
[1764535021477,0.66,137.18,137.16,10.77486538]
[1764535022075,0.66,137.18,137.17,3.48449547]
[1764535023071,7.28922454,137.19,137.17,3.48449547]
[1764535023271,7.94922454,137.19,137.17,3.48449547]
[1764535023473,0.66,137.18,137.1,24.47778234]
[1764535023670,19.79335947,137.16,137.12,1e-08]
[1764535024061,0.66,137.15,137.12,1e-08]
[1764535024273,10.49181857,137.14,137.12,1e-08]
[1764535024776,0.66,137.13,137.12,1e-08]
[1764535025261,7.95235032,137.13,137.12,1e-08]
[1764535028387,7.95235032,137.13,137.12,1e-08]
[1764535029766,11.43684579,137.13,137.12,1e-08]
[1764535030699,14.92134126,137.13,137.12,1e-08]
[1764535030861,32.49221707,137.13,137.07,3.48449547]
[1764535031063,7.34449547,137.12,137.07,3.48449547]
[1764535031285,3.86,137.12,137.08,3.48449547]
[1764535032365,3.86,137.12,137.09,3.48449547]
[1764535032366,10.49301335,137.12,137.09,3.48449547]
[1764535033861,10.49301335,137.12,137.08,7.29498926]
[1764535034062,10.49301335,137.12,137.09,3.48449547]
[1764535036389,11.15301335,137.12,137.09,3.48449547]
[1764535040184,11.15301335,137.12,137.08,10.77948473]
[1764535040383,10.49301335,137.12,137.1,3.48449547]
[1764535042891,7.29301335,137.12,137.1,3.48449547]
[1764535043389,10.49236533,137.13,137.1,3.48449547]
[1764535043689,10.49236533,137.13,137.11,3.48449547]
[1764535045373,3.2,137.13,137.11,3.48449547]
[1764535045787,7.29204701,137.14,137.11,3.48449547]
[1764535047102,7.98204701,137.14,137.11,3.48449547]
[1764535048288,7.98204701,137.14,137.1,10.77839886]
[1764535048783,0.69,137.13,137.1,7.29390339]
[1764535048990,0.69,137.13,137.1,10.77839886]
[1764535050385,3.89,137.15,137.11,3.48449547]
[1764535051393,11.18128874,137.15,137.11,8.80994492]
[1764535051597,11.18128874,137.15,137.11,12.29444039]
[1764535052093,11.18128874,137.15,137.11,19.58742697]
[1764535052891,0.69,137.14,137.11,19.58742697]
[1764535054394,3.2,137.15,137.13,3.48449547]
[1764535054602,3.89,137.17,137.13,3.48449547]
[1764535055100,0.69,137.16,137.13,3.48449547]
[1764535055692,0.69,137.16,137.12,0.31]
[1764535055878,0.69,137.16,137.12,3.79449547]
[1764535056400,0.69,137.16,137.12,7.60239359]
[1764535056586,0.69,137.16,137.13,3.48449547]
[1764535059583,0.69,137.16,137.13,10.77677145]
[1764535063302,0.69,137.16,137.14,3.48449547]
[1764535063702,11.18038564,137.17,137.14,3.48449547]
[1764535064005,0.69,137.16,137.14,3.48449547]
[1764535067596,0.69,137.16,137.13,10.77637915]
[1764535069410,0.69,137.16,137.14,10.77630378]
[1764535074109,0.69,137.16,137.14,3.48449547]
[1764535075202,0.69,137.16,137.14,10.77628072]
[1764535082492,0.69,137.16,137.14,9.52294406]
[1764535084314,3.2,137.17,137.14,9.52294406]
[1764535084512,0.68,137.16,137.14,9.52294406]
[1764535086316,0.68,137.16,137.14,7.29178525]
[1764535086519,0.68,137.16,137.14,9.52294406]
[1764535093029,3.2,137.17,137.14,9.52294406]
[1764535093030,16.988864,137.19,137.15,2.54115881]
[1764535093327,0.68,137.18,137.17,2.23115881]
[1764535095008,0.68,137.18,137.15,18.64188592]
[1764535095728,0.68,137.18,137.15,18.33188592]
[1764535096031,10.20126058,137.18,137.14,61.5]
[1764535096231,32.10306747,137.18,137.14,61.5]
[1764535096440,0.68,137.17,137.14,61.5]
[1764535097930,7.97029158,137.17,137.14,61.5]
[1764535098117,0.68,137.16,137.14,61.5]
[1764535098311,0.68,137.16,137.13,18.33328193]
[1764535099309,0.68,137.16,137.13,16.10212312]
[1764535104436,0.68,137.16,137.13,18.33328193]
[1764535105753,0.68,137.16,137.13,18.64328193]
[1764535106238,0.68,137.16,137.13,18.33328193]
[1764535108436,0.68,137.16,137.13,18.64328193]
[1764535109437,0.68,137.16,137.13,16.10212312]
[1764535109642,0.68,137.16,137.13,18.64328193]
[1764535115042,0.68,137.16,137.13,18.33328193]
[1764535118049,0.68,137.16,137.13,16.10212312]
[1764535118240,0.68,137.16,137.13,18.33328193]
[1764535119344,0.68,137.16,137.13,16.10212312]
[1764535121648,13.40242759,137.16,137.11,7.29298167]
[1764535121850,13.40242759,137.16,137.09,18.5451978]
[1764535121851,2.23115881,137.13,137.09,7.29398975]
[1764535122256,0.67,137.12,137.09,9.52514856]
[1764535122457,3.2,137.13,137.11,2.23115881]
[1764535122661,0.67,137.14,137.11,2.23115881]
[1764535123630,0.67,137.14,137.11,9.52428773]
[1764535133143,0.67,137.14,137.11,7.29312892]
[1764535133443,0.67,137.14,137.11,9.52428773]
[1764535134164,22.57500529,137.14,137.11,9.52428773]
[1764535134339,0.67,137.13,137.11,9.52428773]
[1764535136767,0.67,137.13,137.11,7.29312892]
[1764535136947,0.67,137.13,137.11,9.52428773]
[1764535138170,22.60500529,137.14,137.11,9.83428773]
[1764535138851,22.60500529,137.14,137.11,9.52428773]
[1764535139177,0.7,137.13,137.11,9.52428773]
[1764535139480,0.7,137.13,137.11,7.29312892]
[1764535139682,0.7,137.13,137.11,9.02428773]
[1764535142368,0.7,137.13,137.11,10.28040718]
[1764535142666,22.60500529,137.14,137.12,3.48727826]
[1764535142869,22.60500529,137.14,137.11,7.10312892]
[1764535143071,22.60500529,137.14,137.12,3.48727826]
[1764535147689,21.90500529,137.14,137.11,6.79312892]
[1764535147880,22.60500529,137.14,137.11,6.79312892]
[1764535148080,22.60500529,137.14,137.11,10.28040718]
[1764535150094,21.90500529,137.14,137.11,10.28040718]
[1764535150392,0.7,137.13,137.11,10.28040718]
[1764535151990,0.7,137.13,137.1,73.79722318]
[1764535152297,0.7,137.13,137.1,84.29102945]
[1764535153174,0.7,137.13,137.1,84.60102945]
[1764535154491,0.7,137.13,137.1,84.29102945]
[1764535156296,0.7,137.13,137.1,84.60102945]
[1764535157695,7.99191765,137.13,137.1,84.60102945]
[1764535158196,7.99191765,137.13,137.1,81.11375119]
[1764535158693,7.99191765,137.13,137.1,77.91375119]
[1764535158894,7.99191765,137.13,137.1,81.11375119]
[1764535160704,0.7,137.12,137.1,77.60375119]
[1764535161000,0.7,137.12,137.1,80.80375119]
[1764535161001,11.47919591,137.12,137.1,80.80375119]
[1764535161379,0.7,137.11,137.1,80.80375119]
[1764535161572,0.7,137.11,137.1,19.30375119]
[1764535161792,0.7,137.12,137.1,16.10375119]
[1764535163007,11.47919591,137.12,137.1,16.10375119]
[1764535164000,10.77919591,137.12,137.1,16.10375119]
[1764535164207,0.69,137.11,137.1,16.10375119]
[1764535164903,0.69,137.11,137.09,68.79437775]
[1764535166305,11.46919591,137.11,137.09,68.79437775]
[1764535166504,0.69,137.11,137.09,68.79437775]
[1764535166709,0.69,137.11,137.09,72.28165601]
[1764535167180,0.69,137.11,137.07,0.14216157]
[1764535167380,16.308864,137.1,137.06,7.2958836]
[1764535167609,11.18366048,137.11,137.07,8.80994492]
[1764535167796,0.7,137.1,137.08,3.48727826]
[1764535168314,9.50994492,137.1,137.08,3.48727826]
[1764535168804,0.7,137.09,137.07,8.80994492]
[1764535169009,9.50994492,137.09,137.08,3.48727826]
[1764535169205,9.50994492,137.09,137.06,7.29602739]
[1764535169396,0.7,137.08,137.06,7.29602739]
[1764535169592,0.7,137.08,137.07,3.48727826]
[1764535169798,9.50994492,137.08,137.07,3.48727826]
[1764535170887,9.50994492,137.08,137.05,8.90994492]
[1764535171203,0.7,137.07,137.05,8.90994492]
[1764535171384,0.7,137.07,137.06,3.48727826]
[1764535171899,9.50994492,137.08,137.06,3.48727826]
[1764535172086,0.7,137.08,137.07,3.48727826]
[1764535172282,0.7,137.09,137.07,3.48727826]
[1764535172488,7.99416267,137.09,137.08,3.48727826]
[1764535174821,7.29416267,137.09,137.08,3.48727826]
[1764535175387,0.7,137.1,137.08,3.48727826]
[1764535175587,0.7,137.1,137.09,3.48727826]
[1764535175788,7.99416267,137.1,137.09,3.48727826]
[1764535176217,3.9,137.11,137.09,3.48727826]
[1764535176388,11.19416267,137.11,137.1,3.48727826]
[1764535176694,8.69416267,137.11,137.1,3.48727826]
[1764535176902,0.7,137.11,137.1,3.48727826]
[1764535178018,0.7,137.11,137.09,3.48727826]
[1764535179802,0.7,137.11,137.09,10.78168816]
[1764535180002,0.7,137.11,137.09,3.48727826]
[1764535180203,22.60820462,137.11,137.09,3.48727826]
[1764535180602,0.7,137.1,137.09,3.48727826]
[1764535188123,0.7,137.11,137.09,3.48727826]
[1764535188349,0.7,137.11,137.1,3.48727826]
[1764535188524,0.7,137.12,137.1,3.48727826]
[1764535188720,0.7,137.13,137.11,3.48727826]
[1764535189029,0.7,137.12,137.1,8.80994492]
[1764535189418,0.7,137.12,137.1,16.10347894]
[1764535189926,35.61107758,137.14,137.11,3.48727826]
[1764535190129,0.7,137.12,137.1,77.60347894]
[1764535190305,0.7,137.12,137.1,81.0907572]
[1764535191128,0.7,137.12,137.09,3.48727826]
[1764535191623,22.60980463,137.12,137.09,3.48727826]
[1764535192013,0.7,137.11,137.09,10.78172572]
[1764535198424,0.7,137.11,137.09,3.48727826]
[1764535198628,0.7,137.11,137.09,10.78173537]
[1764535198830,0.7,137.11,137.09,3.48727826]
[1764535199039,20.208864,137.11,137.05,0.1]
[1764535199238,21.91460608,137.1,137.06,3.48727826]
[1764535199531,29.86897066,137.1,137.06,3.48727826]
[1764535199731,0.66,137.09,137.06,3.48727826]
[1764535199908,0.66,137.09,137.05,3.58727826]
[1764535199909,3.2,137.08,137.05,3.58727826]
[1764535200116,3.2,137.08,137.05,0.1]
[1764535200334,0.66,137.07,137.05,0.1]
[1764535201035,16.308864,137.06,137.03,7.29745063]
[1764535201334,6.68727826,137.05,137.03,7.29745063]
[1764535201537,10.78492726,137.04,136.98,8.90994492]
[1764535201735,3.48727826,137.02,136.98,0.1]
[1764535201920,3.2,137.01,136.98,3.58727826]
[1764535202436,0.66,137.0,136.98,8.90994492]
[1764535202632,16.308864,137.03,137.0,8.80994492]
[1764535202837,0.66,137.05,137.02,2.23626718]
[1764535203135,0.66,137.04,137.02,11.0462121]
[1764535203319,0.66,137.04,137.01,2.23626718]
[1764535203835,0.66,137.04,137.01,9.53499685]
[1764535205828,0.66,137.04,137.01,2.23626718]
[1764535206418,0.66,137.04,137.0,7.29927007]
[1764535206626,0.66,137.04,137.01,2.23626718]
[1764535206838,0.66,137.04,137.01,9.53487343]
[1764535207840,3.2,137.06,137.02,11.0462121]
[1764535208043,3.2,137.06,137.02,9.21994492]
[1764535208231,0.66,137.05,137.02,9.21994492]
[1764535208848,0.66,137.05,137.02,16.5179851]
[1764535209341,3.2,137.06,137.03,0.41]
[1764535209532,3.86,137.06,137.02,16.5179851]
[1764535209848,0.66,137.05,137.02,16.5179851]
[1764535211420,0.66,137.05,137.02,16.1079851]
[1764535211919,0.66,137.05,137.02,18.34425228]
[1764535213548,0.66,137.05,137.02,16.1079851]
[1764535213747,0.66,137.05,137.02,18.34425228]
[1764535214736,0.66,137.05,137.02,79.84425228]
[1764535217339,0.66,137.05,137.03,7.29752618]
[1764535220642,0.66,137.05,137.02,79.84421645]
[1764535220832,0.66,137.05,137.02,16.10794927]
[1764535222038,7.95691046,137.05,137.01,2.23626718]
[1764535222454,7.95691046,137.05,137.01,9.5349487]
[1764535222455,0.66,137.04,137.01,9.5349487]
[1764535222654,0.66,137.04,137.02,2.23626718]
[1764535225459,0.66,137.04,137.01,7.29868152]
[1764535225643,0.66,137.04,137.01,9.5349487]
[1764535227045,0.66,137.04,137.02,2.23626718]
[1764535228860,7.29691046,137.05,137.02,2.23626718]
[1764535229051,0.66,137.04,137.02,2.23626718]
[1764535229548,7.95580298,137.07,137.03,9.94393922]
[1764535229850,0.66,137.06,137.05,2.23626718]
[1764535230853,3.2,137.08,137.05,11.0462121]
[1764535231155,0.66,137.07,137.06,2.23626718]
[1764535231456,3.2,137.1,137.07,7.29554242]
[1764535231656,0.66,137.11,137.09,2.23626718]
[1764535231856,0.66,137.13,137.1,2.23626718]
[1764535232156,0.66,137.13,137.12,2.23626718]
[1764535233458,0.66,137.13,137.09,9.53044111]
[1764535236765,7.95237553,137.13,137.08,18.34110482]
[1764535237262,0.66,137.12,137.08,18.34110482]
[1764535237558,3.86,137.12,137.08,18.34110482]
[1764535237755,0.66,137.11,137.09,2.23626718]
[1764535239161,0.66,137.11,137.08,16.10483764]
[1764535239465,0.66,137.11,137.08,18.34110482]
[1764535242846,0.66,137.11,137.09,2.23626718]
[1764535244071,0.66,137.11,137.1,2.23626718]
[1764535248172,0.66,137.11,137.09,2.23626718]
[1764535253976,0.66,137.11,137.08,16.10483764]
[1764535254177,0.66,137.11,137.09,2.23626718]
[1764535256389,0.66,137.11,137.09,9.53072521]
[1764535259687,0.66,137.11,137.1,2.23626718]
[1764535260287,3.2,137.12,137.1,2.23626718]
[1764535260466,10.49258769,137.13,137.11,2.23626718]
[1764535260665,11.20258769,137.13,137.12,2.23626718]
[1764535261773,11.20258769,137.13,137.11,2.23626718]
[1764535262171,3.91,137.13,137.11,2.23626718]
[1764535262374,3.91,137.13,137.12,2.23626718]
[1764535263086,3.91,137.13,137.11,2.23626718]
[1764535263285,7.29181872,137.14,137.12,2.23626718]
[1764535263476,16.308864,137.15,137.13,11.0462121]
[1764535263477,3.2,137.15,137.13,11.0462121]
[1764535263783,0.71,137.14,137.12,11.0462121]
[1764535263970,0.71,137.14,137.11,0.41]
[1764535263971,0.71,137.14,137.11,2.64626718]
[1764535264185,0.71,137.14,137.11,2.23626718]
[1764535264482,0.71,137.14,137.11,12.29737946]
[1764535264662,0.71,137.14,137.11,16.10324006]
[1764535265263,14.68935383,137.14,137.08,8.80994492]
[1764535265765,4.19743454,137.13,137.07,7.29533298]
[1764535266182,0.71,137.12,137.07,10.78276752]
[1764535266386,3.2,137.11,137.07,10.78276752]
[1764535266583,10.49352315,137.11,137.07,10.78276752]
[1764535266807,0.71,137.1,137.07,10.78276752]
[1764535267801,0.71,137.1,137.07,7.29533298]
[1764535267980,0.71,137.1,137.07,10.78276752]
[1764535270288,0.71,137.1,137.08,3.48743454]
[1764535274370,3.2,137.11,137.09,3.48743454]
[1764535274585,3.2,137.11,137.1,3.48743454]
[1764535274769,0.71,137.12,137.1,3.48743454]
[1764535275474,0.71,137.12,137.11,3.48743454]
[1764535276872,3.91,137.14,137.11,10.95745958]
[1764535277072,3.2,137.14,137.13,3.48743454]
[1764535277289,3.0,137.14,137.13,3.48743454]
[1764535277490,3.0,137.14,137.13,3.25401154]
[1764535277675,2.8,137.14,137.13,3.25401154]
[1764535278084,3.51,137.14,137.13,3.02065654]
[1764535278297,3.31,137.14,137.13,3.02065654]
[1764535278591,3.11,137.14,137.13,3.02065654]
[1764535278992,3.11,137.14,137.11,7.70341404]
[1764535279189,2.91,137.14,137.13,3.48743454]
[1764535280497,2.91,137.14,137.12,3.48743454]
[1764535289283,2.91,137.14,137.13,3.48743454]
[1764535291305,2.91,137.14,137.12,3.48743454]
[1764535292303,2.2,137.14,137.12,3.48743454]
[1764535292693,2.85,137.14,137.12,3.48743454]
[1764535292892,2.85,137.14,137.13,3.48743454]
[1764535295517,2.85,137.14,137.11,7.70340243]
[1764535295518,2.85,137.14,137.12,3.48743454]
[1764535295696,0.65,137.13,137.09,64.98743454]
[1764535296181,0.65,137.13,137.09,3.48743454]
[1764535296386,7.29288214,137.12,137.1,3.48743454]
[1764535296908,0.65,137.11,137.1,3.48743454]
[1764535298698,0.65,137.11,137.09,3.48743454]
[1764535298904,0.65,137.11,137.1,3.48743454]
[1764535299107,9.49217988,137.14,137.1,12.29737946]
[1764535299308,0.65,137.13,137.11,12.29737946]
[1764535299500,0.65,137.13,137.12,3.48743454]
[1764535300000,2.2,137.14,137.12,3.48743454]
[1764535300200,2.85,137.14,137.13,3.48743454]
[1764535300422,2.2,137.14,137.13,3.48743454]
[1764535302004,2.85,137.14,137.13,3.48743454]
[1764535302498,7.94134361,137.15,137.13,3.48743454]
[1764535303219,0.65,137.14,137.13,3.48743454]